lending/lending_fUSD_20240721
["ID","MTS","AMOUNT","RATE_DAILY","PERIOD"]
[332849056,1721577367106,-150.0,0.00010893,2]
[332849057,1721577367853,-150.0,0.00010893,2]
[332849058,1721577368443,-150.0,0.00010893,2]
[332849059,1721577377814,150.0,0.0001,2]
[332849060,1721577377835,77.0,0.0001,2]
[332849061,1721577419102,150.0,0.0001,2]
[332849062,1721577419125,150.0,0.0001,2]
[332849063,1721577419146,150.0,0.0001,2]
[332849064,1721577419167,150.0,0.0001,2]
[332849065,1721577419188,150.0,0.0001,2]
[332849066,1721577419210,150.0,0.0001,2]
[332849067,1721577419231,150.0,0.0001,2]
[332849068,1721577419252,150.0,0.0001,2]
[332849069,1721577419277,1977.0,0.0001,2]
[332849070,1721577419307,-150.0,0.0001,2]
[332849071,1721577419335,-150.0,0.0001,2]
[332849072,1721577419364,-150.0,0.0001,2]
[332849073,1721577419421,-150.0,0.0001,2]
[332849074,1721577419465,-150.0,0.0001,2]
[332849075,1721577419500,-150.0,0.0001,2]
[332849076,1721577419555,-150.0,0.0001,2]
[332849077,1721577419609,-150.0,0.0001,2]
[332849078,1721577419655,-150.0,0.0001,2]
[332849079,1721577419699,-150.0,0.0001,2]
[332849080,1721577419770,-209.47383669,0.0001,2]
[332849081,1721577419817,-150.0,0.0001,2]
[332849082,1721577419878,-150.0,0.0001,2]
[332849083,1721577419928,-150.0,0.0001,2]
[332849084,1721577420002,-150.0,0.0001,2]
[332849085,1721577420049,-150.0,0.0001,2]
[332849086,1721577420089,-150.0,0.0001,2]
[332849087,1721577420174,-150.0,0.0001,2]
[332849088,1721577421320,-150.0,0.0001,2]
[332849089,1721577421346,-150.0,0.0001,2]
[332849090,1721577449291,150.0,8.804e-05,2]
[332849091,1721577449312,150.0,8.804e-05,2]
[332849092,1721577449334,150.0,8.804e-05,2]
[332849093,1721577449354,150.0,8.804e-05,2]
[332849094,1721577449375,150.0,8.804e-05,2]
[332849095,1721577449398,74.87,8.804e-05,2]
[332849097,1721577513154,150.0,8.804e-05,2]
[332849098,1721577513178,150.0,8.804e-05,2]
[332849099,1721577513201,150.0,8.804e-05,2]
[332849100,1721577513226,150.0,8.804e-05,2]
[332849101,1721577513248,150.0,8.804e-05,2]
[332849102,1721577513271,150.0,8.804e-05,2]
[332849103,1721577513295,150.0,8.804e-05,2]
[332849104,1721577513319,150.0,8.804e-05,2]
[332849105,1721577513344,150.0,8.804e-05,2]
[332849106,1721577513367,150.0,8.804e-05,2]
[332849107,1721577513394,150.0,8.804e-05,2]
[332849108,1721577513422,150.0,8.804e-05,2]
[332849109,1721577513445,150.0,8.804e-05,2]
[332849110,1721577513469,150.0,8.804e-05,2]
[332849111,1721577513494,87.39221067,8.804e-05,2]
[332849112,1721577593591,150.0,8.804e-05,2]
[332849113,1721577593613,150.0,8.804e-05,2]
[332849114,1721577593633,150.0,8.804e-05,2]
[332849115,1721577593654,150.0,8.804e-05,2]
[332849116,1721577593675,119.95709716,8.804e-05,2]
[332849117,1721577606167,150.0,8.804e-05,2]
[332849118,1721577606192,150.0,8.804e-05,2]
[332849119,1721577606215,150.0,8.804e-05,2]
[332849120,1721577606240,150.0,8.804e-05,2]
[332849121,1721577606265,150.0,8.804e-05,2]
[332849122,1721577606289,150.0,8.804e-05,2]
[332849123,1721577606311,150.0,8.804e-05,2]
[332849124,1721577606336,150.0,8.804e-05,2]
[332849125,1721577606361,150.0,8.804e-05,2]
[332849126,1721577606383,49.08162602,8.804e-05,2]
[332849128,1721577678217,150.0,8.804e-05,2]
[332849129,1721577678241,150.0,8.804e-05,2]
[332849130,1721577678263,150.0,8.804e-05,2]
[332849131,1721577680161,-172.4306816,0.00010546,2]
[332849132,1721577680698,-45.47985689,0.00010546,2]
[332849133,1721577680720,-104.52014311,0.00010558,2]
[332849134,1721577691629,-150.0,0.00010646,2]
[332849135,1721577712504,-150.0,0.00010639,2]
[332849138,1721577776195,-250.0,0.00010586,2]
[332849139,1721577776217,-19.64,0.00010639,2]
[332849140,1721577776240,-4730.36,0.00010639,2]
[332849141,1721577784613,-300.0,0.00010638,2]
[332849142,1721577784635,-150.0,0.00010638,2]
[332849143,1721577784656,-6139.14346032,0.00010639,2]
[332849144,1721577798114,-85.72,0.00010646,2]
[332849145,1721577798138,-800.0,0.00010648,2]
[332849146,1721577798160,-114.28,0.00010663,2]
[332849147,1721577817719,-135.72,0.00010663,2]
[332849148,1721577817740,-155.0,0.00010671,2]
[332849149,1721577817761,-155.92115813,0.00010671,2]
[332849150,1721577817781,-521.74362309,0.00010671,2]
[332849151,1721577817801,-31.61521878,0.00010671,2]
[332849152,1721577826591,-331.30093385,0.00010571,2]
[332849153,1721577826612,-168.69906615,0.00010671,2]
[332849154,1721577844646,-14.95369291,0.00010671,2]
[332849155,1721577844672,-135.04630709,0.00010671,2]
[332849160,1721578018618,868.68,8.728e-05,2]
[332849240,1721578061061,155.07415215,8.728e-05,2]
[332849241,1721578066701,158.80623493,8.728e-05,2]
[332849242,1721578081166,694.52752118,8.728e-05,2]
[332849243,1721578081695,158.80623493,8.728e-05,2]
[332849244,1721578102674,121078.70875802,8.728e-05,2]
[332849249,1721578196697,242.10040047,8.728e-05,2]
[332849252,1721578231815,-159.51806429,0.00010091,2]
[332849253,1721578231826,-478.331445,0.00010139,2]
[332849254,1721578231836,-923.01,0.00010191,2]
[332849255,1721578231846,-235.76,0.00010227,2]
[332849256,1721578231855,-2928.51,0.00010234,2]
[332849257,1721578231866,-385.82,0.00010245,2]
[332849258,1721578231876,-300.0,0.000105,2]
[332849259,1721578231886,-300.0,0.000105,2]
[332849260,1721578231896,-21738.13,0.00010501,2]
[332849261,1721578231906,-259.344,0.00010571,2]
[332849262,1721578231918,-150.0,0.00010578,2]
[332849263,1721578231929,-835.97661551,0.00010579,2]
[332849264,1721578231939,-155.0,0.00010579,2]
[332849265,1721578231949,-155.0,0.00010579,2]
[332849266,1721578231959,-156.20399515,0.00010579,2]
[332849267,1721578231970,-155.0,0.00010579,2]
[332849268,1721578231979,-342.0860799,0.00010579,2]
[332849269,1721578231989,-200.01033885,0.00010579,2]
[332849270,1721578232000,-523.94615202,0.00010579,2]
[332849271,1721578232010,-525.41980997,0.00010579,2]
[332849272,1721578232020,-202.61410226,0.00010579,2]
[332849273,1721578232030,-183.43841317,0.00010579,2]
[332849274,1721578232039,-194.54246302,0.00010579,2]
[332849275,1721578232050,-413.9726578,0.00010579,2]
[332849276,1721578232060,-1616.8393225,0.00010579,2]
[332849277,1721578232071,-755.69426588,0.00010671,2]
[332849278,1721578232080,-150.0,0.00010701,2]
[332849279,1721578232090,-500.0,0.000109,3]
[332849280,1721578232100,-300.0,0.00010959,2]
[332849281,1721578232109,-150.0,0.00010959,2]
[332849282,1721578232119,-425.36,0.00010978,2]
[332849283,1721578232128,-327.95,0.00010978,2]
[332849285,1721578232138,-868.68,0.00010991,2]
[332849286,1721578232148,-1000.0,0.00011,4]
[332849287,1721578232158,-425.36,0.00011,2]
[332849288,1721578232167,-155.56,0.00011,2]
[332849289,1721578232177,-150.0,0.00011,2]
[332849290,1721578232186,-300.94,0.00011,2]
[332849291,1721578232196,-1093.4,0.00011,2]
[332849292,1721578232206,-338.22,0.00011,2]
[332849293,1721578232217,-150.0,0.00011,2]
[332849294,1721578232227,-358.67,0.00011,2]
[332849295,1721578232237,-150.0,0.00011041,2]
[332849296,1721578232249,-200.0,0.00011059,2]
[332849297,1721578232258,-7146.31,0.00011068,2]
[332849298,1721578232269,-499.99,0.00011068,2]
[332849299,1721578232278,-425.36,0.00011078,2]
[332849300,1721578232289,-1500.0,0.000111,4]
[332849301,1721578232301,-4470.48250681,0.00011105,2]
[332849302,1721578232311,-9257.67538197,0.00011105,2]
[332849303,1721578232320,-328.66315645,0.00011105,2]
[332849304,1721578232330,-265.08570858,0.00011105,2]
[332849305,1721578232339,-722.49604628,0.00011105,2]
[332849306,1721578232349,-686.09609962,0.00011105,2]
[332849307,1721578232357,-270.18518051,0.00011105,2]
[332849308,1721578232367,-184.31742959,0.00011105,2]
[332849309,1721578232376,-164.16460495,0.00011105,2]
[332849310,1721578232386,-196.66680965,0.00011105,2]
[332849311,1721578232396,-365.10438856,0.00011105,2]
[332849312,1721578232406,-155.38358282,0.00011105,2]
[332849313,1721578232415,-648.95328694,0.00011105,2]
[332849314,1721578232425,-13583.44285288,0.00011105,2]
[332849315,1721578232434,-1350.0,0.00011105,2]
[332849316,1721578232443,-10324.54189592,0.00011105,2]
[332849317,1721578232453,-242.90606631,0.00011105,2]
[332849318,1721578232462,-3399.71436587,0.00011105,2]
[332849320,1721578232472,-22626.1222449,0.00011105,2]
[332849322,1721578232482,-308.85879004,0.00011105,2]
[332849324,1721578232492,-20066.5825,0.00011181,2]
[332849326,1721578232501,-155.0,0.00011186,2]
[332849328,1721578232510,-774.37592563,0.00011199,2]
[332849330,1721578232519,-425.36,0.000112,2]
[332849332,1721578232529,-152.02,0.000112,2]
[332849333,1721578232538,-709.7,0.000112,2]
[332849334,1721578232548,-1058.72,0.000112,2]
[332849335,1721578232558,-425.36,0.000112,2]
[332849336,1721578232568,-2000.0,0.000112,4]
[332849337,1721578232577,-425.36,0.00011278,2]
[332849338,1721578232587,-6263.92,0.00011281,2]
[332849339,1721578232596,-29999.99,0.00011281,2]
[332849340,1721578232606,-1106.25,0.00011281,2]
[332849341,1721578232616,-19999.99,0.00011281,2]
[332849342,1721578232625,-4417.99,0.00011281,2]
[332849343,1721578232634,-9620.85,0.00011281,2]
[332849344,1721578232644,-9527.55,0.00011281,2]
[332849345,1721578232653,-2500.0,0.000113,4]
[332849346,1721578232663,-367.33448944,0.00011322,2]
[332849347,1721578232672,-155.36342901,0.00011322,2]
[332849348,1721578232682,-5396.11785072,0.00011324,2]
[332849349,1721578232691,-203.15690384,0.00011384,2]
[332849350,1721578232701,-500.0,0.000114,4]
[332849351,1721578232712,-500.0,0.000115,4]
[332849352,1721578232721,-420.0,0.00011544,2]
[332849353,1721578232731,-90389.0,0.00011547,2]
[332849354,1721578232740,-2500.0,0.00011563,2]
[332849355,1721578232749,-500.0,0.000116,4]
[332849356,1721578232759,-255.0,0.00011604,2]
[332849357,1721578232768,-150.0,0.0001164,2]
[332849358,1721578232777,-150.0,0.0001169,2]
[332849359,1721578232787,-150.0,0.00011699,2]
[332849360,1721578232796,-685.4,0.000117,2]
[332849361,1721578232805,-680.8545,0.000117,2]
[332849362,1721578232814,-500.0,0.000117,4]
[332849363,1721578232824,-552.0701,0.0001174,2]
[332849364,1721578232833,-150.0,0.00011759,2]
[332849365,1721578232843,-150.0,0.00011766,2]
[332849366,1721578232852,-400.77929,0.0001178,2]
[332849367,1721578232862,-1000.0,0.000118,2]
[332849368,1721578232871,-1000.0,0.000118,2]
[332849369,1721578232880,-339.38995376,0.000118,2]
[332849370,1721578232890,-500.12979247,0.000118,4]
[332849371,1721578232899,-750.0,0.000118,4]
[332849372,1721578232910,-218.49372438,0.000118,2]
[332849373,1721578232920,-168.12424796,0.000118,2]
[332849374,1721578232929,-7500.0,0.000118,2]
[332849375,1721578232939,-14098.47229027,0.000118,2]
[332849376,1721578232950,-3292.6647356,0.000118,2]
[332849377,1721578232959,-500.0,0.00011805,2]
[332849378,1721578232969,-500.0,0.0001184,2]
[332849379,1721578232979,-565.7178,0.0001184,2]
[332849380,1721578232988,-155.19441389,0.0001185,2]
[332849381,1721578232998,-216.45576739,0.0001189,2]
[332849382,1721578233008,-1403.84050483,0.00011896,2]
[332849383,1721578233017,-165.46711443,0.00011899,2]
[332849384,1721578233027,-257516.91574241,0.000119,2]
[332849385,1721578233040,-82982.30087,0.000119,2]
[332849386,1721578233075,-27344.70657209,0.000119,2]
[332849387,1721578233087,-11864.73769437,0.000119,2]
[332849388,1721578233102,-776.61022031,0.000119,2]
[332849389,1721578233113,-4591.446,0.000119,2]
[332849390,1721578233132,-469.02406266,0.000119,2]
[332849391,1721578233144,-938.21279485,0.000119,2]
[332849392,1721578233271,-14.66756593,0.000119,2]
[332849419,1721578238750,-150.01,0.00011899,2]
[332849420,1721578238760,-49.85042286,0.000119,2]
[332849421,1721578238908,-1745.13662017,0.000119,2]
[332849422,1721578239932,-410549.01523982,0.000119,2]
[332849423,1721578240143,-557.83209693,0.000119,2]
[332849424,1721578240247,-492.55741441,0.000119,2]
[332849558,1721578241718,-160.37287094,0.00010579,2]
[332849599,1721578242220,-160.37287094,0.00010571,2]
[332849605,1721578242723,-160.37287094,0.00010571,2]
[332849629,1721578243031,-3265.01060924,0.00010571,2]
[332849630,1721578243044,-190.58644888,0.00010571,2]
[332849631,1721578243055,-115.09236844,0.00010579,2]
[332849632,1721578243136,-35.04556447,0.00010579,2]
[332849633,1721578243145,-1816.504683,0.000119,2]
[332849634,1721578243241,-685.21555,0.000119,2]
[332849635,1721578243253,-268.44414501,0.000119,2]
[332849644,1721578247160,-12031.5326562,0.000112,2]
[332849645,1721578247175,-2930.19138144,0.000112,2]
[332849646,1721578247183,-367.33448944,0.00011206,2]
[332849647,1721578247193,-21426.30639138,0.00011663,2]
[332849648,1721578247204,-3370.9785,0.00011663,2]
[332849649,1721578266446,-160.37287094,0.00010579,2]
[332849650,1721578266986,-160.37287094,0.00010579,2]
[332849651,1721578267499,-160.37287094,0.00010579,2]
[332849652,1721578267998,-160.37287094,0.00010579,2]
[332849653,1721578269574,-160.37287094,0.00010579,2]
[332849654,1721578270256,-160.37287094,0.00010579,2]
[332849655,1721578271018,-160.37287094,0.00010579,2]
[332849656,1721578271601,-160.37287094,0.00010579,2]
[332849657,1721578272368,-160.37287094,0.00010579,2]
[332849658,1721578273358,-160.37287094,0.00010579,2]
[332849659,1721578273861,-160.37287094,0.00010579,2]
[332849660,1721578274299,-160.37287094,0.00010579,2]
[332849661,1721578275300,-160.37287094,0.00010579,2]
[332849662,1721578276115,-160.37287094,0.00010579,2]
[332849663,1721578276588,-160.37287094,0.00010579,2]
[332849664,1721578277107,-160.37287094,0.00010579,2]
[332849665,1721578277620,-150.0,0.00010579,2]
[332849666,1721578278126,-150.0,0.00010579,2]
[332849667,1721578278907,-150.0,0.00010579,2]
[332849668,1721578279489,-150.0,0.00010579,2]
[332849669,1721578280410,-150.0,0.00010579,2]
[332849670,1721578281144,-150.0,0.00010579,2]
[332849671,1721578281784,-150.0,0.00010579,2]
[332849672,1721578282348,-150.0,0.00010579,2]
[332849673,1721578282823,-150.0,0.00010579,2]
[332849674,1721578284120,-150.0,0.00010579,2]
[332849677,1721578635760,150.0,8.586e-05,2]
[332849678,1721578635782,150.0,8.586e-05,2]
[332849679,1721578635803,150.0,8.586e-05,2]
[332849680,1721578635826,150.0,8.586e-05,2]
[332849681,1721578635847,150.0,8.586e-05,2]
[332849682,1721578635870,150.0,8.586e-05,2]
[332849683,1721578635891,27.79,8.586e-05,2]
[332849685,1721578689251,150.0,8.586e-05,2]
[332849686,1721578689272,150.0,8.586e-05,2]
[332849687,1721578689292,158.90451829,8.586e-05,2]
[332849688,1721578689314,150.0,8.586e-05,2]
[332849689,1721578689334,150.0,8.586e-05,2]
[332849690,1721578689359,150.0,8.586e-05,2]
[332849691,1721578689379,150.0,8.586e-05,2]
[332849692,1721578689401,150.0,8.586e-05,2]
[332849693,1721578689422,150.0,8.586e-05,2]
[332849694,1721578689444,150.0,8.586e-05,2]
[332849695,1721578689465,150.0,8.586e-05,2]
[332849696,1721578689486,150.0,8.586e-05,2]
[332849697,1721578689507,150.0,8.586e-05,2]
[332849698,1721578689528,150.0,8.586e-05,2]
[332849699,1721578689549,150.0,8.586e-05,2]
[332849700,1721578689570,150.0,8.586e-05,2]
[332849701,1721578689590,403.69865202,8.586e-05,2]
[332849703,1721578727206,150.0,8.337e-05,2]
[332849704,1721578727227,22.2,8.337e-05,2]
[332849705,1721578744063,236.81451449,0.00014712,120]
[332849706,1721579125712,173.9919563,0.00014712,120]
[332849721,1721579240369,881.4,8.281e-05,2]
[332850004,1721579299745,445.01094751,8.281e-05,2]
[332850005,1721579299767,1647.13038372,8.281e-05,2]
[332850009,1721579312246,150.0,8.281e-05,2]
[332850010,1721579312268,150.0,8.281e-05,2]
[332850011,1721579312290,150.0,8.281e-05,2]
[332850037,1721579432064,-162.85410276,9.938e-05,2]
[332850038,1721579432073,-1461.35730898,0.00010037,2]
[332850039,1721579432082,-4490.3357122,0.00010051,2]
[332850040,1721579432092,-188.58,0.00010151,2]
[332850041,1721579432101,-17592.80335321,0.00010172,2]
[332850042,1721579432113,-6307.19664679,0.00010172,2]
[332850043,1721579432122,-211.42,0.00010182,2]
[332850044,1721579432132,-200.0,0.00010211,2]
[332850045,1721579432142,-150.0,0.00010238,2]
[332850046,1721579432151,-287.43,0.00010255,2]
[332850047,1721579432162,-304.47,0.00010262,2]
[332850048,1721579432171,-282.64,0.0001027,2]
[332850049,1721579432181,-952.2,0.00010277,2]
[332850050,1721579432190,-818.18,0.00010306,2]
[332850051,1721579432198,-150.0,0.00010337,2]
[332850052,1721579432208,-250.0,0.00010338,2]
[332850053,1721579432217,-499.99,0.00010338,2]
[332850054,1721579432227,-14503.46,0.00010338,2]
[332850055,1721579432235,-1739.11,0.00010338,2]
[332850056,1721579432247,-640.0,0.00010367,2]
[332850057,1721579432255,-1662.0513532,0.00010367,2]
[332850058,1721579432270,-330.05428612,0.00010367,2]
[332850059,1721579432314,-2119.19436068,0.00010367,2]
[332850060,1721579432323,-69.64633932,0.00010373,2]
[332850132,1721579438041,-210.65596664,0.00010037,2]
[332850133,1721579438052,-180.35366068,0.00010373,2]
[332850134,1721579438061,-1178.34121804,0.00010373,2]
[332850135,1721579438103,-885.31749508,0.00010373,2]
[332850136,1721579438114,-569.78816292,0.00010373,2]
[332850137,1721579438126,-816.07128584,0.00010373,2]
[332850138,1721579438137,-1056.24525267,0.00010373,2]
[332850139,1721579438148,-2472.92464761,0.00010373,2]
[332850140,1721579438160,-3021.30193784,0.00010373,2]
[332850141,1721579438170,-1031.42207258,0.00010373,2]
[332850142,1721579438190,-2735.53908701,0.00010373,2]
[332850143,1721579438201,-1938.81596643,0.00010373,2]
[332850144,1721579438213,-617.94287398,0.00010373,2]
[332850145,1721579438223,-160.37287094,0.00010407,2]
[332850146,1721579438233,-150.99,0.00010407,2]
[332850147,1721579438242,-4417.99,0.00010407,2]
[332850148,1721579438254,-5964.34357538,0.00010407,2]
[332850149,1721579438274,-12977.04642462,0.00010407,2]
[332850150,1721579438283,-15748.55,0.00010407,2]
[332850151,1721579438293,-150.99,0.000105,2]
[332850152,1721579438302,-881.4,0.00010545,2]
[332850153,1721579438312,-360.0,0.00010547,2]
[332850154,1721579438321,-1444.43321444,0.00010579,2]
[332850155,1721579438340,-184.49144668,0.00010579,2]
[332850156,1721579438350,-469.18756593,0.00010579,2]
[332850157,1721579438361,-179.76572101,0.00010579,2]
[332850158,1721579438371,-242.90606631,0.00010579,2]
[332850159,1721579438381,-42.02548984,0.00010579,2]
[332850161,1721579438394,-113.10482892,0.00010579,2]
[332850163,1721579438404,-202.8572021,0.00010579,2]
[332850165,1721579438413,-90.50713502,0.00010579,2]
[332850167,1721579438424,-243.13357005,0.00010579,2]
[332850169,1721579438434,-1616.23,0.00010653,2]
[332850171,1721579438443,-798.87,0.00010959,2]
[332850173,1721579438453,-175.95,0.00010959,2]
[332850175,1721579438462,-162.85410276,0.00011005,2]
[332850177,1721579438472,-2205.88198324,0.00011105,2]
[332850179,1721579438481,-3297.08034395,0.00011105,2]
[332850181,1721579438492,-613.21,0.00011105,2]
[332850185,1721579438516,-6618.11483938,0.00011105,2]
[332850187,1721579438526,-492.92587255,0.00011105,2]
[332850189,1721579438535,-155.0,0.00011105,2]
[332850190,1721579438544,-1273.72040028,0.00011105,2]
[332850192,1721579438554,-162.22662195,0.00011105,2]
[332850194,1721579438564,-719.02900539,0.00011105,2]
[332850196,1721579438579,-585.40316378,0.00011105,2]
[332850198,1721579438589,-2837.16238839,0.00011105,2]
[332850201,1721579438601,-1073.15860955,0.00011105,2]
[332850203,1721579438612,-512.39532544,0.00011105,2]
[332850205,1721579438621,-211.43777772,0.00011105,2]
[332850207,1721579438631,-1445.92071075,0.00011105,2]
[332850209,1721579438642,-155.8558465,0.00011105,2]
[332850211,1721579438652,-1993.1054535,0.00011105,2]
[332850212,1721579438662,-1823.76015388,0.00011105,2]
[332850214,1721579438672,-155.27998251,0.00011105,2]
[332850216,1721579438682,-306.49145131,0.00011105,2]
[332850218,1721579438692,-369.78252598,0.00011105,2]
[332850220,1721579438701,-19663.15203905,0.00011105,2]
[332850222,1721579438711,-285.74921913,0.00011105,2]
[332850224,1721579438721,-369.78252598,0.00011105,2]
[332850226,1721579438731,-347.09163168,0.00011105,2]
[332850228,1721579438741,-203.56693648,0.00011161,2]
[332850230,1721579438756,-155.0,0.00011161,2]
[332850232,1721579438766,-7356.36814605,0.00011176,2]
[332850234,1721579438776,-175.6392,0.00011181,2]
[332850236,1721579438786,-150.0,0.00011181,2]
[332850238,1721579438795,-629.7,0.00011181,2]
[332850240,1721579438805,-1117.2672,0.00011181,2]
[332850242,1721579438815,-155.0,0.00011186,2]
[332850244,1721579438825,-155.93009891,0.00011186,2]
[332850246,1721579438835,-155.9907907,0.00011206,2]
[332850248,1721579438844,-158.77431514,0.00011206,2]
[332850250,1721579438854,-1500.0,0.00011206,2]
[332850252,1721579438864,-155.0,0.00011206,2]
[332850254,1721579438873,-11495.1204,0.00011212,2]
[332850256,1721579438883,-165.21,0.00011247,2]
[332850258,1721579438892,-165.21,0.00011304,2]
[332850260,1721579438902,-156.58046574,0.00011322,2]
[332850262,1721579438911,-347.18365579,0.00011322,2]
[332850264,1721579438921,-1267.24320587,0.00011324,2]
[332850266,1721579438931,-1137.47940458,0.00011324,2]
[332850267,1721579438940,-155.0,0.00011324,2]
[332850269,1721579438950,-1137.47940458,0.00011324,2]
[332850271,1721579438959,-155.49860368,0.00011324,2]
[332850273,1721579438969,-255.0,0.0001135,2]
[332850275,1721579438979,-356.93341906,0.00011384,2]
[332850277,1721579438988,-236.00243342,0.00011384,2]
[332850279,1721579439001,-155.82064845,0.00011384,2]
[332850281,1721579439010,-155.0,0.00011384,2]
[332850282,1721579439019,-155.0,0.00011384,2]
[332850284,1721579439028,-188.58,0.0001142,2]
[332850285,1721579439038,-211.42,0.00011455,2]
[332850286,1721579439050,-334.55694797,0.00011512,2]
[332850287,1721579439060,-211.39508857,0.00011525,2]
[332850288,1721579439071,-191.65859836,0.00011525,2]
[332850289,1721579439081,-155.0,0.00011525,2]
[332850290,1721579439091,-640.0,0.00011663,2]
[332850291,1721579439100,-2658.2622,0.000117,2]
[332850292,1721579439111,-2150.3034,0.000117,2]
[332850293,1721579439120,-1560.25439,0.0001178,2]
[332850294,1721579439130,-11457.0,0.00011781,2]
[332850295,1721579439139,-2233.21503504,0.000118,2]
[332850296,1721579439149,-1000.0,0.000118,2]
[332850297,1721579439159,-1000.0,0.000118,2]
[332850298,1721579439168,-531.39415453,0.000118,2]
[332850299,1721579439177,-347.97105986,0.000118,2]
[332850300,1721579439187,-230.0229,0.000118,2]
[332850301,1721579439196,-7500.0,0.000118,2]
[332850302,1721579439206,-154.79411677,0.000118,2]
[332850303,1721579439215,-834.51376712,0.000118,2]
[332850304,1721579439225,-153.68776239,0.000118,2]
[332850305,1721579439234,-150.50133856,0.000118,2]
[332850306,1721579439244,-500.0,0.00011805,2]
[332850307,1721579439257,-220.81,0.00011808,3]
[332850308,1721579439270,-186.61,0.00011847,2]
[332850309,1721579439280,-531.52423191,0.0001185,2]
[332850310,1721579439290,-360.0,0.00011865,2]
[332850311,1721579439299,-890.94883011,0.00011872,2]
[332850312,1721579439309,-154.86,0.0001189,30]
[332850313,1721579439319,-5147.96166671,0.0001189,2]
[332850314,1721579439329,-529.74,0.0001189,2]
[332850315,1721579439338,-254.72693387,0.00011896,2]
[332850316,1721579439348,-180.92422887,0.00011899,2]
[332850317,1721579439358,-154830.81947619,0.000119,2]
[332850318,1721579439779,-290.0640776,0.000119,2]
[332850440,1721579441416,-890.74057297,0.00011525,2]
[332850442,1721579441426,-159.37746402,0.0001185,2]
[332850444,1721579441435,-484.49996538,0.00011896,2]
[332850446,1721579441445,-11387.02039576,0.000119,2]
[332850449,1721579441457,-350.87,0.000119,2]
[332850477,1721579443486,-4675.9135587,0.000119,2]
[332850478,1721579443608,-305.3305634,0.000119,2]
[332850490,1721579446161,-537.565,0.000119,2]
[332850491,1721579446173,-596.836,0.000119,2]
[332850492,1721579446279,-307.89258711,0.000119,2]
[332850493,1721579446290,-894.6375305,0.000119,2]
[332850494,1721579446400,-10321.65021737,0.000119,2]
[332850495,1721579446412,-1754.02771519,0.000119,2]
[332850527,1721580339895,-866.46,9.063e-05,2]
[332850528,1721580339918,-250.0,0.00010519,2]
[332850529,1721580339947,-300.0,0.0001058,2]
[332850530,1721580339969,-300.0,0.0001058,2]
[332850531,1721580339994,-8283.54,0.00010581,2]
[332850532,1721580340703,-1478.33,0.00010581,2]
[332850533,1721580340728,-250.0,0.00010583,2]
[332850534,1721580340756,-784.0,0.00010646,2]
[332850535,1721580340780,-160.0,0.00010752,2]
[332850536,1721580340803,-150.0,0.00010795,2]
[332850537,1721580340824,-796.76,0.00010813,2]
[332850538,1721580363643,863.49,9.036e-05,2]
[332850539,1721580381342,2854.11799045,0.00010813,2]
[332850540,1721580392155,422.22,0.00010959,2]
[332850659,1721580507410,158.85,0.00010973,2]
[332850665,1721580565171,250.0,0.00010911,2]
[332850757,1721580638245,-490.9518,0.00011005,2]
[332850758,1721580638260,-1737.95289546,0.00011005,2]
[332850759,1721580638278,-1715.38863992,0.00011005,2]
[332850760,1721580638356,-605.61078592,0.00011005,2]
[332850761,1721580638466,-1002.32273999,0.00011005,2]